[Event "Chinese Team-ch Men 2025"]
[Site "Zhang Jiakou Hebei"]
[Date "2025.04.27"]
[Round "3.27"]
[White "Zhai, Bugong"]
[Black "Zhang, Jingran"]
[Result "1/2-1/2"]
[Annotator "NA"]
[ECO "A23"]
[WhiteElo "1661"]
[BlackElo "1787"]
[PlyCount "122"]
[EventDate "2025.04.26"]
[EventType "team-tourn"]
[EventCountry "CHN"]
[SourceTitle "playchess.com"]
[Source "ChessBase"]
[SourceQuality "1"]
[TimeControl "5400+30"]

1. c4 {[%emt 0:00:05]} c6 {[%emt 0:00:04]} 2. g3 {[%emt 0:00:03]} d5 {[%emt 0:00:04]} 3. Bg2 {[%emt 0:00:05]} e5 {[%emt 0:00:04]} 4. cxd5 {[%emt 0:01:15]} cxd5 {[%emt 0:00:06]} 5. Qb3 {[%emt 0:05:47]} Nf6 {[%emt 0:01:25]} 6. Nc3 {[%emt 0:03:03]} e4 {[%emt 0:01:07]} 7. d3 {[%emt 0:00:54]} exd3 {[%emt 0:05:39]} 8. Nxd5 {[%emt 0:01:41]} Nc6 {[%emt 0:01:33]} 9. Qxd3 {[%emt 0:12:32]} Nxd5 {[%emt 0:01:51]} 10. Bxd5 {[%emt 0:01:23]} Bb4+ {[%emt 0:07:22]} 11. Bd2 {[%emt 0:03:24]} Bxd2+ {[%emt 0:00:09]} 12. Qxd2 {[%emt 0:00:18]} Ne7 {[%emt 0:00:47]} 13. Be4 {[%emt 0:12:43]} Qb6 {[%emt 0:00:32]} 14. Nf3 {[%emt 0:00:48]} Be6 {[%emt 0:01:45]} 15. O-O {[%emt 0:00:58]} O-O {[%emt 0:01:52]} 16. Qd4 {[%emt 0:01:01]} Qa5 {[%emt 0:01:34]} 17. b3 {[%emt 0:04:16]} Rfd8 {[%emt 0:04:23]} 18. Qb2 {[%emt 0:01:47]} Qb4 {[%emt 0:02:21]} 19. Bd3 {[%emt 0:05:07]} h6 {[%emt 0:04:57]} 20. Rac1 {[%emt 0:02:25]} a5 {[%emt 0:02:11]} 21. Bc4 {[%emt 0:01:56]} Rd6 {[%emt 0:03:06]} 22. Bxe6 {[%emt 0:02:09]} Rxe6 {[%emt 0:00:26]} 23. Rfd1 {[%emt 0:01:24]} a4 {[%emt 0:01:50]} 24. Rc4 {[%emt 0:01:12]} Qb6 {[%emt 0:00:28]} 25. b4 {[%emt 0:01:33]} Re8 {[%emt 0:03:37]} 26. Nd4 {[%emt 0:00:48]} Rf6 {[%emt 0:01:27]} 27. e3 {[%emt 0:01:35]} Ng6 {[%emt 0:01:24]} 28. b5 {[%emt 0:03:21]} Ne5 {[%emt 0:04:33]} 29. Rxa4 {[%emt 0:00:08]} h5 {[%emt 0:02:27]} 30. h4 {[%emt 0:01:23]} Ng4 {[%emt 0:01:33]} 31. Rd2 {[%emt 0:02:46]} Qc7 {[%emt 0:03:26]} 32. Qc2 {[%emt 0:20:15]} Qe5 {[%emt 0:00:30]} 33. Ra3 {[%emt 0:06:43]} g5 {[%emt 0:07:32]} 34. hxg5 {[%emt 0:00:23]} Qxg5 {[%emt 0:05:01]} 35. e4 {[%emt 0:01:39]} h4 {[%emt 0:00:39]} 36. Nf3 {[%emt 0:00:44]} Qxb5 {[%emt 0:03:34]} 37. Nxh4 {[%emt 0:00:24]} Qe5 {[%emt 0:02:59]} 38. Qd1 {[%emt 0:00:57]} Qxe4 {[%emt 0:01:48]} 39. Ra4 {[%emt 0:00:20]} Qe1+ {[%emt 0:00:47]} 40. Qxe1 {[%emt 0:00:08]} Rxe1+ {[%emt 0:00:08]} 41. Kg2 {[%emt 0:00:03]} Ne5 {[%emt 0:00:46]} 42. Ra8+ {[%emt 0:00:39]} Kg7 {[%emt 0:00:36]} 43. Re8 {[%emt 0:00:12]} Nf3 {[%emt 0:01:15]} 44. Rxe1 {[%emt 0:00:21]} Nxe1+ {[%emt 0:00:05]} 45. Kh3 {[%emt 0:01:31]} Nf3 {[%emt 0:00:09]} 46. Rb2 {[%emt 0:00:45]} Nxh4 {[%emt 0:00:40]} 47. Kxh4 {[%emt 0:00:23]} Ra6 {[%emt 0:00:11]} 48. f4 {[%emt 0:00:21]} Ra3 {[%emt 0:01:09]} 49. g4 {[%emt 0:00:36]} b5 {[%emt 0:00:52]} 50. g5 {[%emt 0:00:27]} Ra4 {[%emt 0:01:24]} 51. Kg4 {[%emt 0:00:31]} Kg6 {[%emt 0:00:08]} 52. Rc2 {[%emt 0:00:31]} Rd4 {[%emt 0:01:57]} 53. Kf3 {[%emt 0:00:35]} Ra4 {[%emt 0:00:20]} 54. Rb2 {[%emt 0:00:31]} Ra3+ {[%emt 0:01:31]} 55. Ke4 {[%emt 0:00:20]} Ra4+ {[%emt 0:00:09]} 56. Ke5 {[%emt 0:00:21]} Ra6 {[%emt 0:01:30]} 57. Kd5 {[%emt 0:00:48]} Kf5 {[%emt 0:01:59]} 58. Rf2 {[%emt 0:00:21]} Ra4 {[%emt 0:01:06]} 59. Kc5 {[%emt 0:00:42]} Rxf4 {[%emt 0:00:12]} 60. Rxf4+ {[%emt 0:00:09]} Kxf4 {[%emt 0:00:04]} 61. Kxb5 {[%emt 0:00:07]} Kxg5 {[%emt 0:00:04]} 1/2-1/2

[Event "Chinese Team-ch Men 2025"]
[Site "Zhang Jiakou Hebei"]
[Date "2025.04.27"]
[Round "3.29"]
[White "Xu, Xiangyu"]
[Black "Ma, Lin"]
[Result "1-0"]
[Annotator "TA"]
[ECO "D06"]
[WhiteElo "2623"]
[BlackElo "2221"]
[PlyCount "105"]
[EventDate "2025.04.26"]
[EventType "team-tourn"]
[EventCountry "CHN"]
[SourceTitle "playchess.com"]
[Source "ChessBase"]
[SourceQuality "1"]
[TimeControl "5400+30"]

{[%evp 9,105,18,10,21,8,20,18,18,26,24,22,23,23,18,22,8,29,33,26,22,47,37,65,67,66,53,88,83,82,77,78,85,81,87,82,72,85,88,69,59,82,83,88,86,84,82,81,87,90,90,95,102,114,107,109,100,112,103,115,110,121,125,187,165,185,196,182,110,193,173,178,99,183,160,136,102,208,199,224,170,163,175,245,251,252,263,477,463,476,447,1038,1008,1002,1014,1060,1035,906,884]} 1. d4 {[%emt 0:00:04]} d5 {[%emt 0:00:10]} 2. Nf3 {[%emt 0:00:08]} Bf5 {[%emt 0:00:26]} 3. c4 {[%emt 0:00:15]} e6 {[%emt 0:00:08]} 4. Nc3 {[%emt 0:00:11]} Nf6 {[%emt 0:00:22]} 5. Qb3 {[%emt 0:00:25]} Nc6 {[%emt 0:00:59] [#]} 6. cxd5 {[%emt 0:00:52] D06: Queen's Gambit: Symmetrical and Baltic Defences.} (6. Qxb7 Nb4 7. Nb5 Nc2+ (7... dxc4 $2 8. Nxc7+ $18) 8. Kd1 Bd6 9. Qc6+ (9. Nxd6+ $2 cxd6 10. Qc6+ Kf8 $19) 9... Kf8) 6... exd5 {[%emt 0:00:23]} 7. Bg5 {[%emt 0:00:10]} Na5 {[%emt 0:05:19]} 8. Qa4+ {[%emt 0:00:39] The position is equal.} c6 {[%emt 0:00:06]} 9. Bxf6 {[%emt 0:00:07]} gxf6 {[%emt 0:00:02]} 10. e3 {[%emt 0:00:07]} Qb6 {[%emt 0:01:13]} 11. O-O-O {[%emt 0:00:08][%cal Be1c1,Bc1b1,Bb1a1][%mdl 32]} (11. Nxd5 Qxb2 12. Rd1 (12. Nxf6+ Ke7 $19) 12... O-O-O $11) 11... O-O-O {[%emt 0:00:05]} 12. Nh4 $5 {[%emt 0:13:24][%mdl 4] Leaves trodden paths.} Bg6 {[%emt 0:02:40] A sharp opening} 13. Bd3 {[%emt 0:16:33]} Kb8 {[%emt 0:18:47]} 14. Qc2 {[%emt 0:01:53]} Bd6 $146 {[%emt 0:21:12]} (14... Nc4 15. Nxg6 hxg6 16. Na4 Qa5 17. Bxc4 dxc4 18. Kb1 f5 19. Nc3 Bg7 20. h3 c5 21. dxc5 Qxc5 {1-0 Lalith,B (2586)-Stark,L (2374) Bayern-chI Bank Hofmann 20th 2016 (4)}) 15. Kb1 {[%emt 0:04:23]} Rhe8 {[%emt 0:08:38]} 16. Ka1 {[%emt 0:00:44]} Bf8 {[%emt 0:01:32]} 17. Rc1 {[%emt 0:06:07]} Nc4 {[%emt 0:09:48] [#] Threatens to win with ...Bxd3.} 18. Nxg6 {[%emt 0:01:32]} fxg6 {[%emt 0:01:13]} 19. Bxc4 {[%emt 0:02:20]} (19. Na4 Qa5 $14) 19... dxc4 {[%emt 0:00:02]} 20. Ne2 {[%emt 0:00:08]} c5 {[%emt 0:01:10][%cal Rc5d4]} 21. Qxc4 {[%emt 0:00:07]} cxd4 {[%emt 0:00:21]} 22. Nxd4 {[%emt 0:00:12]} f5 {[%emt 0:02:17][%cal Of5f4]} 23. Nb3 {[%emt 0:01:08]} Bg7 {[%emt 0:04:03]} 24. Rc2 {[%emt 0:07:22]} Rc8 {[%emt 0:06:18]} 25. Qf4+ {[%emt 0:01:42]} Ka8 {[%emt 0:00:02]} 26. Rhc1 {[%emt 0:01:16]} Rxc2 {[%emt 0:00:13]} 27. Rxc2 {[%emt 0:00:07]} Rd8 {[%emt 0:05:34] ( -> ...Rd1+)} 28. Qc4 $40 {[%emt 0:05:05][%cal Oc4c8][%mdl 128] Qc8+! would kill now. Black is in trouble.} a6 {[%emt 0:06:53]} 29. a3 {[%emt 0:00:28]} Be5 {[%emt 0:00:11] Prevents Qc7} 30. Ka2 {[%emt 0:00:54]} h5 {[%emt 0:00:07]} 31. h3 {[%emt 0:02:31]} Bf6 {[%emt 0:02:34]} 32. g3 {[%emt 0:09:28]} Be5 {[%emt 0:00:39]} 33. Nc5 {[%emt 0:01:25][%cal Bb3c5,Bc5d3,Bd3b4][%mdl 32]} Qc6 {[%emt 0:01:51]} 34. Qb3 {[%emt 0:00:18]} Rc8 {[%emt 0:00:44]} 35. Rc1 {[%emt 0:00:15] aiming for Nd3.} Bf6 {[%emt 0:00:59]} (35... Rd8 $16 36. Nd3 Qd6 37. Nxe5 Qxe5) 36. Nd3 $18 {[%emt 0:04:21]} Qd7 {[%emt 0:00:02]} 37. Rxc8+ {[%emt 0:00:08]} Qxc8 {[%emt 0:00:01][%mdl 4096] Endgame KQB-KQN. White is a pawn up.} 38. Qf7 {[%emt 0:00:35]} (38. Nf4 $18) 38... Qc6 {[%emt 0:01:46]} (38... h4 $16) 39. Nb4 {[%emt 0:01:36]} (39. Qxg6 Qd5+ 40. Ka1 (40. b3 $2 Bc3 $19) 40... Qh1+ 41. Ka2 Qd5+ 42. Ka1 Qh1+ 43. Ka2 Qd5+ $11) 39... Qb6 {[%emt 0:00:01]} 40. Qb3 {[%emt 0:01:38]} (40. Qxg6 Qe6+ 41. Kb1 h4 $16) (40. h4 $18) 40... Qd6 {[%emt 0:00:46]} (40... h4 $16) 41. Qd5 {[%emt 0:01:07]} Qb6 {[%emt 0:00:34]} 42. h4 {[%emt 0:00:44]} Ka7 {[%emt 0:00:39]} (42... f4 $16) 43. Nd3 {[%emt 0:00:29]} Ka8 {[%emt 0:00:36]} 44. b4 {[%emt 0:02:14]} Qc7 {[%emt 0:00:32]} 45. Nc5 {[%emt 0:00:05]} a5 {[%emt 0:00:29]} (45... Be7 {was necessary.} 46. Kb2 (46. Nxa6 $2 {perishes.} Qc2+ 47. Ka1 Bf6+ $19) 46... Bxc5 47. Qxc5 (47. bxc5 Qa5 $16) 47... Qd7) 46. Kb3 {[%emt 0:01:27]} axb4 {[%emt 0:00:06]} 47. axb4 {[%emt 0:00:05][%cal Ba3b4,Bb4b5][%mdl 32]} Be5 $2 {[%emt 0:00:54]} (47... Be7 48. Qg8+ Ka7 49. Qxg6 Bxc5) 48. Qd7 {[%emt 0:01:59] White is clearly winning.} Kb8 {[%emt 0:00:32]} 49. Kc4 {[%emt 0:01:34]} ({Less strong is} 49. Qe8+ Ka7 50. Qxg6 b6 $18) 49... b6 {[%emt 0:00:24]} (49... Bb2 $142 50. Qxc7+ (50. Qe8+ Ka7 $18) 50... Kxc7) 50. Qxc7+ {[%emt 0:00:34]} Kxc7 {[%emt 0:00:02]} 51. Nd3 {[%emt 0:00:53]} Bd6 {[%emt 0:00:38]} 52. b5 {[%emt 0:00:07]} Kd7 {[%emt 0:00:50]} 53. Kd5 {[%emt 0:00:06] Weighted Error Value: White=0.07 (flawless) /Black=0.32  Mistake:       	White=2     	Black=7      Inaccurate:     	---       	Black=2      OK:         	White=25    	Black=14     Best:        	White=1     	Black=3} 1-0

[Event "Chinese Team-ch Men 2025"]
[Site "Zhang Jiakou Hebei"]
[Date "2025.04.27"]
[Round "3.30"]
[White "Sun, Chao"]
[Black "Li, Di"]
[Result "1-0"]
[Annotator "RC"]
[ECO "E21"]
[WhiteElo "2211"]
[BlackElo "2571"]
[PlyCount "82"]
[EventDate "2025.04.26"]
[EventType "team-tourn"]
[EventCountry "CHN"]
[SourceTitle "playchess.com"]
[Source "ChessBase"]
[SourceQuality "1"]
[TimeControl "5400+30"]

1. d4 {[%emt 0:00:05]} Nf6 {[%emt 0:00:21]} 2. c4 {[%emt 0:00:10]} e6 {[%emt 0:01:55]} 3. Nc3 {[%emt 0:00:11]} Bb4 {[%emt 0:00:18]} 4. Bd2 {[%emt 0:00:39]} O-O {[%emt 0:04:40]} 5. Nf3 {[%emt 0:00:42]} b6 {[%emt 0:03:45]} 6. e3 {[%emt 0:00:21]} c5 {[%emt 0:01:13]} 7. a3 {[%emt 0:01:20]} Bxc3 {[%emt 0:00:31]} 8. Bxc3 {[%emt 0:00:08]} Ne4 {[%emt 0:00:13]} 9. Qc2 {[%emt 0:00:19]} Bb7 {[%emt 0:01:08]} 10. Be2 {[%emt 0:00:58]} d6 {[%emt 0:01:33]} 11. O-O {[%emt 0:01:18]} Nd7 {[%emt 0:00:19]} 12. Rfd1 {[%emt 0:01:48]} Qe7 {[%emt 0:04:32]} 13. Be1 {[%emt 0:12:48]} Rac8 {[%emt 0:00:06]} 14. dxc5 {[%emt 0:03:51]} bxc5 {[%emt 0:13:37]} 15. Nd2 {[%emt 0:04:35]} Nef6 {[%emt 0:00:04]} 16. Nf3 {[%emt 0:09:49]} h6 {[%emt 0:08:06]} 17. h3 {[%emt 0:00:39]} Be4 {[%emt 0:10:38]} 18. Qd2 {[%emt 0:02:02]} Ne8 {[%emt 0:05:15]} 19. Rdc1 {[%emt 0:04:57]} f5 {[%emt 0:00:40]} 20. b4 {[%emt 0:00:31]} Ba8 {[%emt 0:02:10]} 21. b5 {[%emt 0:04:05]} g5 {[%emt 0:03:19]} 22. Nh2 {[%emt 0:00:34]} Ndf6 {[%emt 0:02:38]} 23. f3 {[%emt 0:01:18]} e5 {[%emt 0:01:39]} 24. Bg3 {[%emt 0:16:01]} Ng7 {[%emt 0:00:28]} 25. Rd1 {[%emt 0:02:44]} Rcd8 {[%emt 0:00:21]} 26. a4 {[%emt 0:00:21]} Ne6 {[%emt 0:01:42]} 27. Ra3 {[%emt 0:01:10]} f4 {[%emt 0:05:19]} 28. Bf2 {[%emt 0:02:12]} h5 {[%emt 0:13:31]} 29. Rd3 {[%emt 0:02:40]} d5 {[%emt 0:01:09]} 30. cxd5 {[%emt 0:00:41]} Bxd5 {[%emt 0:08:43]} 31. Qb2 {[%emt 0:04:31]} fxe3 {[%emt 0:02:14]} 32. Bxe3 {[%emt 0:01:07]} Nd4 {[%emt 0:00:05]} 33. Bf1 {[%emt 0:06:48]} g4 {[%emt 0:03:20]} 34. fxg4 {[%emt 0:00:55]} hxg4 {[%emt 0:00:08]} 35. Bg5 {[%emt 0:00:08]} c4 {[%emt 0:00:48]} 36. Rxd4 {[%emt 0:07:53]} exd4 {[%emt 0:01:15]} 37. Nxg4 {[%emt 0:00:10]} c3 {[%emt 0:00:35]} 38. Qc1 {[%emt 0:00:31]} Qc5 {[%emt 0:00:37]} 39. Bxf6 {[%emt 0:02:06]} d3+ {[%emt 0:00:26]} 40. Kh1 {[%emt 0:00:20]} d2 {[%emt 0:00:36]} 41. Qc2 {[%emt 0:00:10]} Bxg2+ {[%emt 0:01:03]} 1-0

[Event "Chinese Team-ch Men 2025"]
[Site "Zhang Jiakou Hebei"]
[Date "2025.04.27"]
[Round "3.33"]
[White "Fan, Yupan"]
[Black "Yu, Shi"]
[Result "0-1"]
[Annotator "NA"]
[ECO "A85"]
[WhiteElo "1527"]
[BlackElo "1973"]
[PlyCount "110"]
[EventDate "2025.04.26"]
[EventType "team-tourn"]
[EventCountry "CHN"]
[SourceTitle "playchess.com"]
[Source "ChessBase"]
[SourceQuality "1"]
[TimeControl "5400+30"]

1. d4 {[%emt 0:00:37]} f5 {[%emt 0:00:07]} 2. c4 {[%emt 0:00:36]} Nf6 {[%emt 0:00:04]} 3. Nc3 {[%emt 0:00:31]} g6 {[%emt 0:00:07]} 4. f3 {[%emt 0:00:43]} c5 {[%emt 0:02:50]} 5. e4 {[%emt 0:09:34]} cxd4 {[%emt 0:00:54]} 6. Qd2 {[%emt 0:01:31]} d3 7. Qxd3 {[%emt 0:00:30]} Nc6 {[%emt 0:00:40]} 8. Qd1 {[%emt 0:00:51]} fxe4 {[%emt 0:00:40]} 9. fxe4 {[%emt 0:00:50]} Bg7 {[%emt 0:01:10]} 10. Nf3 {[%emt 0:03:46]} O-O {[%emt 0:01:11]} 11. Bd3 {[%emt 0:04:51]} Ng4 {[%emt 0:03:05]} 12. Qe2 {[%emt 0:16:48]} d6 {[%emt 0:06:43]} 13. Bd2 {[%emt 0:02:45]} Nge5 {[%emt 0:00:13]} 14. Nxe5 {[%emt 0:02:36]} Nxe5 {[%emt 0:00:04]} 15. Be3 {[%emt 0:06:37]} Qa5 {[%emt 0:07:54]} 16. Qd2 {[%emt 0:04:45]} Be6 {[%emt 0:00:49]} 17. Bd4 {[%emt 0:02:13]} Rac8 {[%emt 0:15:31]} 18. Bxe5 {[%emt 0:07:56]} Bxe5 {[%emt 0:02:34]} 19. Nd5 {[%emt 0:06:20]} Qxd2+ {[%emt 0:02:30]} 20. Kxd2 {[%emt 0:00:06]} Bxd5 {[%emt 0:00:06]} 21. exd5 {[%emt 0:01:37]} Rf2+ {[%emt 0:00:09]} 22. Be2 {[%emt 0:00:34]} Rxg2 {[%emt 0:00:38]} 23. Rag1 {[%emt 0:00:55]} Rxg1 {[%emt 0:00:35]} 24. Rxg1 {[%emt 0:00:05]} Bxh2 {[%emt 0:00:05]} 25. Rf1 {[%emt 0:00:26]} Be5 {[%emt 0:00:44]} 26. b3 {[%emt 0:00:46]} Rf8 {[%emt 0:01:15]} 27. Rh1 {[%emt 0:03:25]} Kg7 {[%emt 0:00:16]} 28. Ke3 {[%emt 0:01:03]} h5 {[%emt 0:00:55]} 29. Bd3 {[%emt 0:00:25]} Kh6 {[%emt 0:00:11]} 30. a3 {[%emt 0:03:54]} Rf4 {[%emt 0:01:51]} 31. Be2 {[%emt 0:00:17]} Rf5 {[%emt 0:00:54]} 32. Bf3 {[%emt 0:02:14]} Bd4+ {[%emt 0:01:29]} 33. Ke4 {[%emt 0:00:46]} Bc5 {[%emt 0:00:59]} 34. b4 {[%emt 0:00:16]} Re5+ {[%emt 0:00:07]} 35. Kf4 {[%emt 0:00:50]} Bf2 {[%emt 0:01:36]} 36. Bg2 {[%emt 0:02:14]} Re1 {[%emt 0:01:21]} 37. Rxe1 {[%emt 0:02:37]} Bxe1 {[%emt 0:00:06]} 38. c5 {[%emt 0:00:15]} dxc5 {[%emt 0:05:26]} 39. bxc5 {[%emt 0:00:04]} Bf2 {[%emt 0:04:14]} 40. c6 {[%emt 0:00:32]} bxc6 {[%emt 0:00:05]} 41. dxc6 {[%emt 0:00:03]} Bb6 {[%emt 0:00:19]} 42. Bd5 {[%emt 0:01:57]} Bc7+ {[%emt 0:00:34]} 43. Ke4 {[%emt 0:00:53]} Kg7 {[%emt 0:03:15]} 44. Be6 {[%emt 0:01:36]} Kf6 {[%emt 0:00:06]} 45. Bh3 {[%emt 0:01:46]} g5 {[%emt 0:00:25]} 46. Bd7 {[%emt 0:01:31]} g4 {[%emt 0:01:10]} 47. Be8 {[%emt 0:00:45]} h4 {[%emt 0:00:21]} 48. Bd7 {[%emt 0:00:20]} e6 {[%emt 0:00:12]} 49. Ke3 {[%emt 0:00:11]} h3 {[%emt 0:00:10]} 50. Kf2 {[%emt 0:00:47]} g3+ {[%emt 0:00:05]} 51. Kg1 {[%emt 0:00:50]} Bb6+ {[%emt 0:00:06]} 52. Kh1 {[%emt 0:00:13]} g2+ {[%emt 0:00:04]} 53. Kh2 {[%emt 0:00:04]} g1=Q+ {[%emt 0:00:05]} 54. Kxh3 {[%emt 0:00:07]} Bf2 {[%emt 0:00:18]} 55. Bxe6 {[%emt 0:00:18]} Qg3# {[%emt 0:00:05]} 0-1

[Event "Chinese Team-ch Men 2025"]
[Site "Zhang Jiakou Hebei"]
[Date "2025.04.28"]
[Round "4.1"]
[White "Li, Chao b"]
[Black "Xu, Yi"]
[Result "1/2-1/2"]
[Annotator "TA"]
[ECO "E20"]
[WhiteElo "2624"]
[BlackElo "2480"]
[PlyCount "59"]
[EventDate "2025.04.26"]
[EventType "team-tourn"]
[EventCountry "CHN"]
[SourceTitle "playchess.com"]
[Source "ChessBase"]
[SourceQuality "1"]
[TimeControl "5400+30"]

{[%evp 11,59,-15,-15,-18,-20,-28,0,-3,4,8,15,0,2,-8,16,0,0,-40,0,0,0,14,15,-87,-89,-102,-90,-95,-95,-327,-304,-283,-290,-307,-204,-209,-214,-214,-205,-318,-333,-344,-322,-331,-320,-333,-314,-303,-287,-276]} 1. d4 {[%emt 0:00:05]} Nf6 {[%emt 0:00:05]} 2. c4 {[%emt 0:00:17]} e6 {[%emt 0:00:05]} 3. Nf3 {[%emt 0:00:13]} d5 {[%emt 0:00:05]} 4. Nc3 {[%emt 0:00:08]} Bb4 {[%emt 0:00:07]} 5. g3 {[%emt 0:00:11]} dxc4 {[%emt 0:01:32]} 6. Bg2 {[%emt 0:00:34]} O-O {[%emt 0:01:13]} (6... Bxc3+ 7. bxc3 Nbd7 8. Nd2 $14) 7. a3 {[%emt 0:02:14] E20: Nimzo-Indian: 4 g3 and 4 f3.} Bxc3+ $1 {[%emt 0:07:52] 7...Bxc3+ is better than 7...Be7.} 8. bxc3 {[%emt 0:00:07] [#]} c5 $1 {[%emt 0:19:00]} 9. a4 {[%emt 0:00:12] The position is equal.} Qa5 {[%emt 0:03:47]} 10. O-O {[%emt 0:04:06]} Nc6 {[%emt 0:03:59][%cal Bb8c6,Bc6a5,Ba5b3][%mdl 32]} 11. Qc2 {[%emt 0:09:32][%mdl 1024] White sacrificed a pawn Wards off Ne4. White has compensation.} Rd8 {[%emt 0:04:39]} 12. Bd2 {[%emt 0:09:11]} Qc7 {[%emt 0:05:48][%cal Rc5d4]} 13. Rad1 $146 {[%emt 0:06:59]} (13. dxc5 h6 14. Nd4 Na5 15. Nb5 Qe7 16. Be3 Bd7 17. Nd6 Bc6 18. Bxc6 bxc6 19. f3 {0-1 Bukal,V (2394)-Berescu,A (2505) Mediterranean op 2nd 2008 (8)}) 13... h6 {[%emt 0:03:53]} 14. e4 {[%emt 0:10:13]} e5 {[%emt 0:04:49]} ({Black should play} 14... Bd7 $15) 15. d5 $11 {[%emt 0:27:40]} Na5 {[%emt 0:00:38]} 16. h3 {[%emt 0:01:22]} Bd7 {[%emt 0:06:41] [#]} 17. d6 {[%emt 0:02:25]} Qxd6 $17 {[%emt 0:00:30]} 18. Bxh6 {[%emt 0:00:28]} Qe6 {[%emt 0:04:36]} 19. Bg5 {[%emt 0:01:17]} Nb3 {[%emt 0:01:57]} 20. Nxe5 $2 {[%emt 0:06:16] White does not recover from this.} Qxe5 $19 {[%emt 0:01:34]} 21. f4 {[%emt 0:00:04]} Qe8 {[%emt 0:05:23]} 22. Qe2 {[%emt 0:06:57]} Bxa4 {[%emt 0:01:36]} 23. Bxf6 {[%emt 0:00:03]} gxf6 {[%emt 0:00:28]} 24. Qg4+ {[%emt 0:00:05]} Kf8 {[%emt 0:00:09][%cal Bg8f8,Bf8e7,Be7d7][%mdl 32]} 25. Qh4 {[%emt 0:00:16]} (25. e5 {only move.} Qe6 (25... fxe5 26. Qh4 $11) 26. Qh5) 25... Rxd1 {[%emt 0:12:18] Black has a decisive advantage.} 26. Rxd1 {[%emt 0:00:05] [#]} Rd8 $1 {[%emt 0:00:24] Inhibits e5.} (26... Ke7 27. e5 $16) 27. Re1 {[%emt 0:00:06][%cal Oe4e5] And now e5! would win.} ({Reject} 27. Qh8+ Ke7 28. Rxd8 Qxd8 $19) 27... Ke7 {[%emt 0:01:35] Strongly threatening ...Qh8.} 28. e5 {[%emt 0:00:29] [#]} Kd7 $1 {[%emt 0:00:21]} 29. Qxf6 {[%emt 0:03:22]} Qe6 {[%emt 0:01:10]} 30. Qg5 {[%emt 0:00:00][%mdl 32768] Weighted Error Value: White=0.35/Black=0.12 (very precise)  An unexpected result.  Loses game:     	White=1     	---        Mistake:       	White=2     	Black=1      Inaccurate:     	White=1     	Black=1      OK:         	White=7     	Black=9      Best:        	White=3     	Black=1      Strong:       	---       	Black=2} 1/2-1/2

[Event "Chinese Team-ch Men 2025"]
[Site "Zhang Jiakou Hebei"]
[Date "2025.04.28"]
[Round "4.2"]
[White "Lou, Yiping"]
[Black "Xiu, Deshun"]
[Result "1/2-1/2"]
[Annotator "RC"]
[ECO "D38"]
[WhiteElo "2464"]
[BlackElo "2516"]
[PlyCount "63"]
[EventDate "2025.04.26"]
[EventType "team-tourn"]
[EventCountry "CHN"]
[SourceTitle "playchess.com"]
[Source "ChessBase"]
[SourceQuality "1"]
[TimeControl "5400+30"]

1. d4 {[%emt 0:00:08]} Nf6 {[%emt 0:00:08]} 2. c4 {[%emt 0:00:07]} e6 {[%emt 0:00:06]} 3. Nf3 {[%emt 0:00:19]} d5 {[%emt 0:02:22]} 4. Nc3 {[%emt 0:01:05]} Bb4 {[%emt 0:01:01]} 5. Bg5 {[%emt 0:00:25]} h6 {[%emt 0:01:24]} 6. Bxf6 {[%emt 0:00:07]} Qxf6 {[%emt 0:00:05]} 7. e3 {[%emt 0:00:36]} O-O {[%emt 0:00:24]} 8. Rc1 {[%emt 0:01:21]} dxc4 {[%emt 0:01:42]} 9. Bxc4 {[%emt 0:00:22]} c5 {[%emt 0:00:08]} 10. dxc5 {[%emt 0:01:32]} Nd7 {[%emt 0:10:01]} 11. c6 {[%emt 0:03:18]} bxc6 {[%emt 0:05:40]} 12. O-O {[%emt 0:00:10]} Ne5 {[%emt 0:03:31]} 13. Nxe5 {[%emt 0:08:12]} Qxe5 {[%emt 0:02:30]} 14. Be2 {[%emt 0:00:08]} Rb8 {[%emt 0:06:11]} 15. Na4 {[%emt 0:04:55]} Be7 {[%emt 0:04:22]} 16. Rc2 {[%emt 0:09:53]} c5 {[%emt 0:08:04]} 17. Qc1 {[%emt 0:02:41]} Bd7 {[%emt 0:00:56]} 18. Nxc5 {[%emt 0:00:20]} Bxc5 {[%emt 0:00:11]} 19. Rxc5 {[%emt 0:00:04]} Qxb2 {[%emt 0:00:37]} 20. Rc2 {[%emt 0:00:09]} Qxc1 {[%emt 0:01:04]} 21. Rfxc1 {[%emt 0:00:04]} Rfc8 {[%emt 0:00:13]} 22. f4 {[%emt 0:00:10]} Kf8 {[%emt 0:00:50]} 23. Kf2 {[%emt 0:00:06]} Ke7 {[%emt 0:00:25]} 24. Rxc8 {[%emt 0:00:28]} Rxc8 {[%emt 0:00:06]} 25. Rxc8 {[%emt 0:00:03]} Bxc8 {[%emt 0:00:06]} 26. Ke1 {[%emt 0:00:07]} Kd6 {[%emt 0:00:12]} 27. Kd2 {[%emt 0:00:05]} Kc5 {[%emt 0:00:06]} 28. Kc3 {[%emt 0:00:04]} Bb7 {[%emt 0:00:56]} 29. g3 {[%emt 0:00:05]} f6 {[%emt 0:00:36]} 30. a3 {[%emt 0:00:18]} e5 {[%emt 0:00:13]} 31. fxe5 {[%emt 0:00:11]} fxe5 {[%emt 0:00:04]} 32. Bc4 {[%emt 0:00:07]} 1/2-1/2

[Event "Chinese Team-ch Men 2025"]
[Site "Zhang Jiakou Hebei"]
[Date "2025.04.28"]
[Round "4.3"]
[White "Peng, Hongchi"]
[Black "Meng, Yihan"]
[Result "1/2-1/2"]
[Annotator "RC"]
[ECO "D20"]
[WhiteElo "2419"]
[BlackElo "2433"]
[PlyCount "36"]
[EventDate "2025.04.26"]
[EventType "team-tourn"]
[EventCountry "CHN"]
[SourceTitle "playchess.com"]
[Source "ChessBase"]
[SourceQuality "1"]
[TimeControl "5400+30"]

1. d4 {[%emt 0:00:01]} d5 {[%emt 0:00:07]} 2. c4 {[%emt 0:00:02]} dxc4 {[%emt 0:00:05]} 3. e4 {[%emt 0:00:02]} e5 {[%emt 0:00:05]} 4. Nf3 {[%emt 0:00:05]} Bb4+ {[%emt 0:00:04]} 5. Nc3 {[%emt 0:00:07]} exd4 {[%emt 0:00:05]} 6. Nxd4 {[%emt 0:00:03]} Nd7 {[%emt 0:00:05]} 7. Bxc4 {[%emt 0:00:06]} Ngf6 {[%emt 0:00:05]} 8. Bxf7+ {[%emt 0:00:19]} Kxf7 {[%emt 0:00:05]} 9. Qb3+ {[%emt 0:00:02]} Ke8 {[%emt 0:00:06]} 10. O-O {[%emt 0:00:03]} Bxc3 {[%emt 0:00:06]} 11. bxc3 {[%emt 0:00:03]} Nc5 {[%emt 0:00:22]} 12. Qb5+ {[%emt 0:00:09]} Nfd7 {[%emt 0:00:03]} 13. e5 {[%emt 0:00:14]} b6 {[%emt 0:00:04]} 14. e6 {[%emt 0:00:06]} Ba6 {[%emt 0:00:05]} 15. Qc6 {[%emt 0:00:45]} Bb7 {[%emt 0:00:06]} 16. Qb5 {[%emt 0:01:17]} Ba6 {[%emt 0:00:04]} 17. Qc6 {[%emt 0:00:21]} Bb7 {[%emt 0:00:03]} 18. Qb5 {[%emt 0:00:35]} Ba6 {[%emt 0:00:05]} 1/2-1/2